bitfinex/quotes_ETHUSD_20240925
["timestamp","ask_amount","ask_price","bid_price","bid_amount"]
[1727253474545,0.08376947,2631.0,2630.9,4.59588]
[1727253475255,0.0387066,2631.3,2630.9,4.59588]
[1727253475452,0.08376947,2631.0,2630.9,4.59588]
[1727253475652,0.0387066,2631.3,2630.9,4.59588]
[1727253475852,0.08376947,2631.0,2630.9,4.59588]
[1727253476072,0.0387066,2631.3,2630.9,4.59588]
[1727253476275,0.08376947,2631.0,2630.9,4.59588]
[1727253476549,0.0387066,2631.3,2630.9,4.59588]
[1727253476753,0.08376947,2631.0,2630.9,4.59588]
[1727253476985,0.0387066,2631.3,2630.9,4.59588]
[1727253477453,0.08394894,2631.2,2630.9,4.59588]
[1727253477654,0.0387066,2631.3,2630.9,4.59588]
[1727253477962,0.08385921,2631.1,2630.9,4.59588]
[1727253478164,0.0387066,2631.3,2630.9,4.59588]
[1727253478362,0.08376947,2631.0,2630.9,4.59588]
[1727253478563,0.0387066,2631.3,2630.9,4.59588]
[1727253478782,0.08375397,2631.0,2630.9,4.59588]
[1727253478953,0.0387066,2631.3,2630.9,4.59588]
[1727253479153,0.08375397,2631.0,2630.9,4.59588]
[1727253479394,0.0387066,2631.3,2630.9,4.59588]
[1727253479554,0.08375397,2631.0,2630.9,4.59588]
[1727253479753,0.0387066,2631.3,2630.9,4.59588]
[1727253480259,0.08392914,2631.2,2630.9,0.7949]
[1727253480453,3.8391866,2631.3,2630.7,7.56803]
[1727253480654,0.0838456,2631.1,2630.7,7.56803]
[1727253480853,4.5682,2631.1,2630.7,7.56803]
[1727253481150,0.08375586,2631.0,2630.7,7.56803]
[1727253482852,0.08375586,2631.0,2630.7,11.36921]
[1727253483058,0.08375586,2631.0,2630.8,3.80103]
[1727253483250,4.6063866,2631.3,2630.8,3.80103]
[1727253483491,0.08366302,2630.9,2630.8,6.80103]
[1727253483783,8.4068866,2631.3,2630.8,6.80103]
[1727253483984,0.08366302,2630.9,2630.8,6.80103]
[1727253484186,4.6063866,2631.3,2630.8,6.80103]
[1727253484374,0.08281727,2630.9,2630.8,6.80103]
[1727253484577,8.4069166,2631.3,2630.8,3.0]
[1727253484880,5.19720579,2631.3,2630.8,3.0]
[1727253485187,0.08308659,2631.2,2630.8,3.0]
[1727253485577,4.6063866,2631.3,2630.8,3.0]
[1727253485787,0.08299682,2631.1,2630.8,3.0]
[1727253485984,1.38489193,2631.2,2630.7,8.36913]
[1727253486306,0.08298444,2631.1,2630.7,8.36914]
[1727253486481,0.08298444,2631.1,2630.7,4.56796]
[1727253486998,0.08298444,2631.1,2630.7,8.36915]
[1727253487161,0.08298444,2631.1,2630.7,4.56796]
[1727253487362,3.88369444,2631.1,2630.7,4.56796]
[1727253487566,0.08298444,2631.1,2630.7,4.56796]
[1727253487805,1.30180534,2631.0,2630.7,0.7668]
[1727253488012,1.30180534,2630.8,2630.2,4.6036]
[1727253488188,3.88411364,2630.9,2630.4,3.80157]
[1727253488394,0.08288408,2630.7,2630.5,0.7703]
[1727253488585,0.0829768,2630.8,2630.5,0.7703]
[1727253488785,0.08279723,2630.6,2630.5,0.7703]
[1727253488992,3.80105,2630.9,2630.5,0.7703]
[1727253489478,0.0829768,2630.8,2630.5,0.7703]
[1727253490989,0.0829768,2630.8,2630.2,5.12214609]
[1727253490990,0.7934,2630.7,2630.2,0.8163]
[1727253491304,0.08279723,2630.6,2630.3,6.80183]
[1727253493572,0.08279723,2630.6,2630.2,5.13723002]
[1727253493767,0.08279723,2630.6,2630.2,3.89232938]
[1727253494006,4.59467,2630.7,2630.2,7.69422938]
[1727253494308,0.0828342,2630.6,2630.2,7.69422938]
[1727253494670,4.59467,2630.7,2630.2,9.01531659]
[1727253494872,4.59467,2630.7,2630.2,8.93928721]
[1727253495221,0.0828342,2630.6,2630.2,8.93928721]
[1727253495571,4.59467,2630.7,2630.2,7.6182]
[1727253495776,4.59467,2630.7,2630.2,9.01531909]
[1727253496033,4.59467,2630.7,2630.2,8.93928969]
[1727253496034,0.0828342,2630.6,2630.2,8.93928969]
[1727253496171,0.0828342,2630.6,2630.3,0.40386186]
[1727253496378,4.59467,2630.7,2630.4,0.40386186]
[1727253496683,4.59467,2630.7,2630.5,0.4038575]
[1727253496880,4.59467,2630.7,2630.6,0.4038575]
[1727253497318,4.59467,2630.7,2630.6,0.40384273]
[1727253498989,4.59467,2630.7,2630.3,6.80183]
[1727253499515,4.59467,2630.7,2630.6,0.40385952]
[1727253499700,4.59467,2630.7,2630.6,0.80771919]
[1727253501221,4.59467,2630.7,2630.6,0.80774119]
[1727253501381,5.56403153,2630.7,2630.6,0.40385952]
[1727253502677,3.80141,2630.6,2630.1,4.59933]
[1727253503290,0.793,2630.7,2630.1,4.59933]
[1727253503291,0.793,2630.7,2630.2,3.80198]
[1727253503493,0.793,2630.7,2630.4,3.80168]
[1727253503829,0.8126,2630.9,2630.5,4.62962]
[1727253505419,0.08262406,2630.8,2630.5,4.62962]
[1727253505602,0.08262406,2630.8,2630.5,3.80152]
[1727253514552,0.08262406,2630.8,2630.6,3.80139]
[1727253514766,0.08262406,2630.8,2630.7,0.8043]
[1727253515049,3.80069,2631.1,2630.7,0.8043]
[1727253515248,3.80086,2631.0,2630.7,0.8043]
[1727253515613,0.08221095,2630.9,2630.7,0.8043]
[1727253515844,3.80087,2631.0,2630.7,0.8043]
[1727253516145,0.08221095,2630.9,2630.7,0.8043]
[1727253518470,0.08221095,2630.9,2630.5,4.60785]
[1727253521186,3.88319095,2630.9,2630.5,0.8064]
[1727253522084,7.68426095,2630.9,2630.5,0.8064]
[1727253522252,3.88319095,2630.9,2630.5,0.8064]
[1727253523581,2.10240534,2630.8,2630.3,5.13180745]
[1727253523944,0.08079194,2630.7,2630.3,7.61664]
[1727253524142,0.08079194,2630.7,2630.3,8.93374179]
[1727253524340,4.60173,2630.8,2630.4,4.67978596]
[1727253524584,0.8006,2630.8,2630.4,3.80169]
[1727253524788,0.0808167,2630.7,2630.4,3.80169]
[1727253525285,0.08072691,2630.6,2630.4,3.80169]
[1727253525466,4.60172,2630.8,2630.4,3.80169]
[1727253525665,0.0808167,2630.7,2630.4,3.80169]
[1727253525863,4.60172,2630.8,2630.4,3.80169]
[1727253526179,0.0808167,2630.7,2630.3,2.13198702]
[1727253526351,0.0808167,2630.7,2630.3,0.8148]
[1727253526561,0.8006,2630.8,2630.4,4.67996493]
[1727253526744,0.08067754,2630.6,2630.4,3.80168]
[1727253526945,0.8006,2630.8,2630.4,3.80168]
[1727253527235,0.08057847,2630.5,2630.4,3.80168]
[1727253527390,3.83891,2631.0,2630.4,4.59028]
[1727253527684,0.08093764,2630.9,2630.5,3.80154]
[1727253528279,0.08093764,2630.9,2630.4,2.18204037]
[1727253528454,0.08093764,2630.9,2630.6,3.8013]
[1727253529458,0.08093764,2630.9,2630.5,4.59015]
[1727253530084,0.7541,2630.8,2630.5,3.80155]
[1727253530284,0.08073038,2630.7,2630.5,3.80155]
[1727253530580,0.7541,2630.8,2630.4,5.11956096]
[1727253530756,0.08064058,2630.6,2630.4,5.11956096]
[1727253530966,0.7541,2630.8,2630.4,3.80169]
[1727253531163,0.08055078,2630.5,2630.4,5.12534589]
[1727253531365,0.7541,2630.8,2630.4,4.68412738]
[1727253531580,0.08055078,2630.5,2630.4,5.12551393]
[1727253531771,0.7541,2630.8,2630.4,4.68423943]
[1727253531972,0.08055078,2630.5,2630.4,3.80169]
[1727253532205,0.7541,2630.8,2630.4,4.68425762]
[1727253532398,0.08055078,2630.5,2630.4,3.80169]
[1727253532561,0.7541,2630.8,2630.4,4.68420582]
[1727253532889,0.7541,2630.8,2630.4,5.12562404]
[1727253533105,0.08073038,2630.7,2630.4,3.80169]
[1727253533392,0.08073038,2630.7,2630.4,5.12563287]
[1727253533589,0.7541,2630.8,2630.4,3.80169]
[1727253533789,0.08064058,2630.6,2630.4,3.80169]
[1727253533993,0.7541,2630.8,2630.4,3.80162]
[1727253534160,0.08058775,2630.5,2630.4,9.74550568]
[1727253534356,0.038,2631.0,2630.4,9.74550568]
[1727253534357,0.038,2631.0,2630.8,0.7714]
[1727253534558,0.038,2631.0,2630.7,3.80114]
[1727253534787,0.08037712,2630.9,2630.7,3.80114]
[1727253535175,0.08037712,2630.9,2630.7,7.60231]
[1727253535581,0.08037712,2630.9,2630.7,3.80114]
[1727253535990,0.08037712,2630.9,2630.8,3.80112]
[1727253539713,0.08037712,2630.9,2630.6,5.89592416]
[1727253539922,0.08037712,2630.9,2630.7,3.80126]
[1727253544433,0.08037712,2630.9,2630.8,0.789]
[1727253544585,0.08037712,2630.9,2630.8,4.59012]
[1727253545725,0.08037712,2630.9,2630.8,5.30525666]
[1727253547189,0.08037712,2630.9,2630.8,4.42329108]
[1727253547383,0.08037712,2630.9,2630.8,5.30511804]
[1727253550423,0.08037712,2630.9,2630.8,5.30511804]
[1727253550644,0.08037712,2630.9,2630.7,5.12422613]
[1727253550926,0.08037712,2630.9,2630.7,3.80126]
[1727253551795,0.08037712,2630.9,2630.6,5.88913766]
[1727253552186,0.08037712,2630.9,2630.6,5.88924332]
[1727253552844,0.08037712,2630.9,2630.7,3.80125]
[1727253554122,0.08037712,2630.9,2630.7,3.80118]
[1727253554825,0.08037712,2630.9,2630.7,5.12443042]
[1727253555337,0.08037712,2630.9,2630.7,3.80118]
[1727253556388,0.08037712,2630.9,2630.7,5.12446824]
[1727253556702,0.08037712,2630.9,2630.7,3.80118]
[1727253557560,0.08037712,2630.9,2630.7,5.1245134]
[1727253560704,0.08037712,2630.9,2630.8,0.88217114]
[1727253561213,0.08037712,2630.9,2630.8,2.20539809]
[1727253561619,0.08037712,2630.9,2630.8,0.88217114]
[1727253561851,0.08037712,2630.9,2630.8,1.2861627]
[1727253562641,0.08037712,2630.9,2630.8,0.40399156]
[1727253563008,0.08037712,2630.9,2630.8,1.28615842]
[1727253563338,0.08037712,2630.9,2630.8,0.40399156]
[1727253563743,0.08037712,2630.9,2630.8,1.28612665]
[1727253564510,0.08037712,2630.9,2630.8,2.20531121]
[1727253564707,0.08037712,2630.9,2630.8,0.88213509]
[1727253565248,0.08037712,2630.9,2630.8,1.28613781]
[1727253565423,0.08037712,2630.9,2630.8,2.11383781]
[1727253568125,0.08037712,2630.9,2630.8,1.70983509]
[1727253568343,0.08037712,2630.9,2630.8,2.11380681]
[1727253569949,0.08037712,2630.9,2630.8,2.11379044]
[1727253570245,0.08037712,2630.9,2630.8,1.23167172]
[1727253570756,0.08037712,2630.9,2630.8,2.11383513]
[1727253571348,0.08037712,2630.9,2630.8,1.23173599]
[1727253571540,0.08037712,2630.9,2630.8,2.11389807]
[1727253574850,0.08037712,2630.9,2630.8,1.28619807]
[1727253575182,0.08037712,2630.9,2630.8,0.40403599]
[1727253575346,0.08037712,2630.9,2630.6,4.56503]
[1727253575542,0.08037712,2630.9,2630.7,0.88521366]
[1727253575726,0.08037712,2630.9,2630.8,0.40412927]
[1727253575932,4.48432637,2630.9,2630.8,0.40412927]
[1727253578466,4.48432637,2630.9,2630.5,3.0]
[1727253578640,3.88135712,2630.9,2630.6,0.88555972]
[1727253578845,3.88135712,2630.9,2630.5,3.0]
[1727253579069,3.88135712,2630.9,2630.6,0.88559135]
[1727253579368,3.88135712,2630.9,2630.5,3.0]
[1727253579516,3.88135712,2630.9,2630.6,0.8855662]
[1727253579717,3.88135712,2630.9,2630.5,3.0]
[1727253579968,3.80113,2630.8,2630.6,0.88569559]
[1727253580266,3.88162738,2630.8,2630.5,3.0]
[1727253580427,3.88162738,2630.8,2630.6,0.88567143]
[1727253580633,3.88162738,2630.8,2630.5,3.0]
[1727253580861,3.88162738,2630.8,2630.6,0.88567762]
[1727253581018,3.88162738,2630.8,2630.5,3.0]
[1727253581223,3.88162738,2630.8,2630.6,0.88568313]
[1727253581522,3.88162738,2630.8,2630.5,3.0]
[1727253581725,3.88162738,2630.8,2630.6,0.88564423]
[1727253581952,3.88162738,2630.8,2630.5,3.0]
[1727253582155,3.80126,2630.7,2630.6,0.88564479]
[1727253582354,3.80126,2630.7,2630.5,1.32843698]
[1727253582355,3.80141,2630.6,2630.5,1.32843698]
[1727253582529,3.80141,2630.6,2630.2,3.7962122]
[1727253582731,0.08018164,2630.5,2630.3,0.88583122]
[1727253582917,0.08018164,2630.5,2630.1,9.0021122]
[1727253583121,4.6256,2630.4,2630.2,0.88590109]
[1727253583319,4.6256,2630.4,2630.0,0.7962122]
[1727253583320,4.70561447,2630.4,2630.1,1.32851298]
[1727253583527,1.30180534,2630.3,2629.9,5.4049622]
[1727253583754,0.07983489,2630.2,2630.0,0.88601276]
[1727253583958,0.07983489,2630.2,2629.9,5.13144361]
[1727253584130,3.80184,2630.3,2630.0,0.88600578]
[1727253584344,3.80184,2630.3,2629.9,3.80239]
[1727253584537,0.07983489,2630.2,2630.0,0.88568364]
[1727253584736,3.80184,2630.3,2629.9,5.13088941]
[1727253584960,0.07983489,2630.2,2630.0,0.88566018]
[1727253585156,3.80184,2630.3,2629.8,8.92726161]
[1727253585357,3.80184,2630.3,2629.9,0.88541877]
[1727253585943,3.80184,2630.3,2629.8,6.80255]
[1727253586164,3.80184,2630.3,2629.8,8.13065436]
[1727253587080,3.80184,2630.3,2629.8,8.13059436]
[1727253587432,0.07983489,2630.2,2629.8,8.13059436]
[1727253587771,0.07974508,2630.1,2629.8,8.13059436]
[1727253588060,3.80184,2630.3,2629.9,1.05007422]
[1727253588441,0.07983489,2630.2,2629.9,1.05007422]
[1727253588769,3.80184,2630.3,2629.9,1.05007422]
[1727253588931,0.07974508,2630.1,2629.8,8.12955889]
[1727253589126,3.802,2630.2,2629.8,3.0]
[1727253589425,0.07974508,2630.1,2629.8,6.80257]
[1727253589872,0.07974508,2630.1,2629.8,3.0]
[1727253597170,3.88188508,2630.1,2629.8,3.0]
[1727253597381,0.07974508,2630.1,2629.8,3.0]
[1727253601402,3.88188508,2630.1,2629.7,0.77]
[1727253601578,0.07974508,2630.1,2629.7,0.77]
[1727253601777,0.07974508,2630.1,2629.8,3.0]
[1727253604376,0.07974508,2630.1,2629.9,0.7717]
[1727253604688,7.60243,2630.8,2630.2,3.80198]
[1727253604990,0.836773,2630.7,2630.3,0.07602599]
[1727253605340,3.80118,2630.8,2630.3,0.07602599]
[1727253606289,7.60242,2630.8,2630.3,0.07602599]
[1727253606589,7.60244,2630.8,2630.3,0.07602599]
[1727253606891,3.80127,2630.7,2630.2,3.87800603]
[1727253607057,4.561655,2630.6,2630.2,0.07602603]
[1727253607262,4.561655,2630.6,2630.1,7.60772]
[1727253607263,3.80141,2630.6,2630.1,7.60772]
[1727253607998,4.60251,2630.6,2630.1,7.68374726]
[1727253608277,0.07706347,2630.5,2630.1,7.60772]
[1727253608479,0.07706347,2630.5,2630.1,7.68374733]
[1727253608776,0.07706347,2630.5,2630.2,3.80199]
[1727253608980,3.80127,2630.7,2630.2,3.80199]
[1727253609342,0.07696406,2630.4,2630.2,3.80199]
[1727253609541,3.80127,2630.7,2630.2,3.80199]
[1727253610196,0.07714362,2630.6,2630.2,3.80199]
[1727253611461,0.07714362,2630.6,2630.3,0.07602618]
[1727253611793,3.80128,2630.7,2630.2,0.07602618]
[1727253612089,0.0771285,2630.5,2630.2,3.80195]
[1727253612280,0.91309462,2630.6,2630.2,3.80195]
[1727253612469,0.07703872,2630.4,2630.2,3.80195]
[1727253612651,3.80128,2630.7,2630.2,3.80195]
[1727253612866,0.07694893,2630.3,2630.2,6.80195]
[1727253613076,3.80128,2630.7,2630.2,6.80195]
[1727253613244,0.07693964,2630.3,2630.2,6.80195]
[1727253613458,3.80128,2630.7,2630.2,6.80195]
[1727253613774,0.07685686,2630.3,2630.2,6.80195]
[1727253613949,3.80143,2630.6,2630.1,7.60771]
[1727253614269,3.80171,2630.4,2630.0,3.0]
[1727253614471,2.27382987,2630.4,2629.7,1.6123122]
[1727253614696,2.27382987,2630.4,2629.6,4.99473097]
[1727253614697,3.80224,2630.1,2629.6,3.80275]
[1727253614864,0.89215686,2630.3,2629.5,3.38124084]
[1727253614865,3.80273,2629.7,2629.5,0.44446146]
[1727253615190,3.80261,2629.8,2629.2,5.94451866]
[1727253615397,0.07613181,2629.6,2629.3,0.88358365]
[1727253615548,0.07613181,2629.6,2629.3,3.80326]
[1727253615748,3.80261,2629.8,2629.3,3.80326]
[1727253615957,4.61781,2629.9,2629.4,3.80314]
[1727253616269,4.61781,2629.9,2629.4,7.60619]
[1727253616270,0.07600486,2629.8,2629.4,7.60619]
[1727253616470,0.8153,2629.9,2629.4,7.60619]
[1727253616675,0.07591503,2629.7,2629.4,7.60619]
[1727253616879,4.61776,2629.9,2629.4,3.87910174]
[1727253617049,0.07582519,2629.6,2629.4,3.87910174]
[1727253617250,9.26227,2629.9,2629.4,3.87910174]
[1727253617471,0.07570745,2629.5,2629.4,3.80305]
[1727253617685,9.26227,2629.9,2629.4,3.80305]
[1727253617892,0.07567956,2629.5,2629.4,3.80305]
[1727253618108,8.42028,2629.9,2629.4,3.80305]
[1727253618252,0.07567956,2629.5,2629.4,3.80305]
[1727253618451,8.42028,2629.9,2629.4,3.80305]
[1727253618651,0.07567956,2629.5,2629.4,3.80305]
[1727253618884,4.61776,2629.9,2629.4,3.80305]
[1727253619088,0.07567956,2629.5,2629.4,3.80305]
[1727253619386,4.61776,2629.9,2629.4,3.80305]
[1727253619583,0.07567956,2629.5,2629.4,3.80305]
[1727253619884,4.61776,2629.9,2629.4,3.80305]
[1727253620075,0.07567956,2629.5,2629.4,3.80305]
[1727253620274,4.61776,2629.9,2629.4,3.80305]
[1727253620479,0.07567956,2629.5,2629.4,3.80305]
[1727253620659,4.61776,2629.9,2629.4,3.80305]
[1727253620984,0.07567956,2629.5,2629.4,3.80305]
[1727253621188,4.61776,2629.9,2629.4,3.80305]
[1727253621419,0.07567956,2629.5,2629.4,3.80305]
[1727253621687,4.61776,2629.9,2629.4,3.80305]
[1727253621903,0.07567956,2629.5,2629.4,3.80305]
[1727253622057,4.61776,2629.9,2629.4,3.80305]
[1727253622259,0.07567956,2629.5,2629.4,3.80305]
[1727253622484,3.80258,2629.8,2629.3,4.32787272]
[1727253622687,0.07567956,2629.5,2629.3,4.32787114]
[1727253622860,4.61776,2629.9,2629.3,6.80321]
[1727253623194,0.07558971,2629.4,2629.3,6.80321]
[1727253623393,3.80265,2629.8,2629.3,7.68843254]
[1727253623691,0.07558971,2629.4,2629.3,6.80321]
[1727253623987,3.80265,2629.8,2629.3,7.68843325]
[1727253624199,4.83406719,2629.8,2629.3,6.80321]
[1727253624707,0.07585925,2629.7,2629.3,6.80321]
[1727253625051,3.80265,2629.8,2629.3,6.80321]
[1727253625254,0.07576941,2629.6,2629.3,6.80321]
[1727253625490,3.80265,2629.8,2629.3,6.80321]
[1727253625659,0.07567956,2629.5,2629.3,6.80321]
[1727253625861,3.80265,2629.8,2629.3,6.80321]
[1727253626080,0.07558971,2629.4,2629.3,6.80321]
[1727253626284,0.07558971,2629.4,2629.3,7.68855086]
[1727253626495,3.80265,2629.8,2629.3,7.68855086]
[1727253626799,0.07558971,2629.4,2629.3,6.80321]
[1727253626999,4.63588,2629.8,2629.3,0.88529786]
[1727253627214,4.63588,2629.8,2629.1,4.5997122]
[1727253627215,5.10476534,2629.6,2629.1,5.13133242]
[1727253627492,0.53944725,2629.7,2629.4,0.7516]
[1727253627657,0.07585925,2629.7,2629.4,0.7516]
[1727253627859,0.7693,2630.2,2629.7,0.7827]
[1727253628059,4.57093,2630.5,2629.9,3.80242]
[1727253628372,3.80171,2630.4,2629.8,3.87851328]
[1727253628572,3.80171,2630.4,2629.9,3.80236]
[1727253628808,0.457101,2630.3,2629.9,3.80236]
[1727253629601,0.038,2630.0,2629.8,7.68099328]
[1727253630294,0.07515488,2629.9,2629.8,7.68099328]
[1727253631207,0.07515488,2629.9,2629.8,3.87851328]
[1727253632193,0.1151764,2629.9,2629.8,3.87851328]
[1727253632693,0.1151764,2629.9,2629.8,4.64381328]
[1727253632898,0.038,2630.0,2629.8,4.64381328]
[1727253633104,0.11456208,2629.9,2629.8,4.64381328]
[1727253633485,0.11456208,2629.9,2629.8,0.84134328]
[1727253633663,0.038,2630.0,2629.7,3.8787425]
[1727253633859,0.11456208,2629.9,2629.7,3.8027]
[1727253634667,0.11456208,2629.9,2629.7,7.60524]
[1727253634879,0.11456208,2629.9,2629.7,3.80261]
[1727253635067,0.11456208,2629.9,2629.6,0.84334525]
[1727253635301,0.11456208,2629.9,2629.7,3.80271]
[1727253635686,0.11456208,2629.9,2629.6,3.7673]
[1727253635984,0.11456208,2629.9,2629.6,7.57005]
[1727253636717,0.11456208,2629.9,2629.6,6.80275]
[1727253636925,0.11456208,2629.9,2629.6,3.0]
[1727253636926,3.91699208,2629.9,2629.6,3.0]
[1727253637084,0.39549921,2629.8,2629.5,3.0]
[1727253637283,0.5101725,2629.8,2629.5,3.0]
[1727253637781,4.3127525,2629.8,2629.5,3.0]
[1727253637996,0.7657,2629.7,2629.5,3.0]
[1727253638241,1.65378825,2629.7,2629.4,3.80307]
[1727253638413,0.1144749,2629.6,2629.4,3.80307]
[1727253640616,0.1144749,2629.6,2629.3,6.80327]
[1727253641926,3.59378945,2629.5,2629.0,0.8342122]
[1727253642156,3.59378945,2629.5,2629.0,0.038]
[1727253642157,0.7749,2629.2,2629.0,0.038]
[1727253642620,0.11364058,2629.1,2629.0,0.038]
[1727253642843,0.11364058,2629.1,2629.0,3.84172]
[1727253643134,0.8278,2629.4,2629.0,3.84172]
[1727253643288,0.11415015,2629.1,2629.0,3.84172]
[1727253643487,0.8278,2629.4,2629.0,3.84172]
[1727253643786,0.11410868,2629.3,2629.0,3.84172]
[1727253644412,0.11410868,2629.3,2629.1,3.80346]
[1727253644617,0.8278,2629.4,2629.1,3.80346]
[1727253644924,0.11410868,2629.3,2629.1,3.80346]
[1727253645296,0.8278,2629.4,2629.1,3.80346]
[1727253645625,4.63098,2629.4,2629.0,0.038]
[1727253645803,0.87650868,2629.3,2629.0,0.038]
[1727253646004,4.67988868,2629.3,2629.0,0.038]
[1727253649147,5.57997754,2629.3,2629.0,0.038]
[1727253649312,1.77667754,2629.3,2629.0,0.038]
[1727253649518,0.87650868,2629.3,2629.0,3.84171]
[1727253655074,0.87650868,2629.3,2629.1,3.80357]
[1727253655240,0.11410868,2629.3,2629.1,3.80357]
[1727253655568,0.811,2629.5,2629.1,3.80357]
[1727253655780,0.11343469,2629.2,2629.1,3.80357]
[1727253655936,5.64160241,2629.5,2629.1,3.80357]
[1727253655937,4.61402,2629.5,2629.1,3.80357]
[1727253656269,3.80265,2629.8,2629.3,3.80327]
[1727253656469,0.11167716,2629.4,2629.3,3.80327]
[1727253656770,3.80265,2629.8,2629.3,3.80327]
[1727253656979,0.11167716,2629.4,2629.3,3.80327]
[1727253657273,0.11171126,2629.4,2629.3,3.80327]
[1727253657455,3.80265,2629.8,2629.3,3.80327]
[1727253657657,0.11171126,2629.4,2629.3,3.80327]
[1727253657866,3.80265,2629.8,2629.3,3.80327]
[1727253658066,0.11171126,2629.4,2629.3,3.80327]
[1727253658258,0.8231,2629.9,2629.5,3.80296]
[1727253658451,0.8231,2629.9,2629.5,4.58396]
[1727253658666,0.11208028,2629.8,2629.5,4.58396]
[1727253659282,0.11208028,2629.8,2629.5,4.58391]
[1727253660384,0.11208028,2629.8,2629.7,3.80271]
[1727253660874,0.11236394,2629.8,2629.7,3.80271]
[1727253661043,0.038,2630.0,2629.7,3.80271]
[1727253661241,0.11236394,2629.8,2629.7,3.80271]
[1727253661481,0.038,2630.0,2629.7,3.80271]
[1727253661645,0.11236394,2629.8,2629.7,3.80271]
[1727253661977,0.038,2630.0,2629.7,3.80271]
[1727253662463,0.1124523,2629.9,2629.8,3.80257]
[1727253664490,0.1124523,2629.9,2629.5,0.781]
[1727253664491,0.7876,2629.8,2629.5,7.58391]
[1727253664843,0.7876,2629.8,2629.5,4.58391]
[1727253664844,0.11234064,2629.7,2629.5,4.58391]
[1727253665044,0.7876,2629.8,2629.5,4.58391]
[1727253665548,0.11232824,2629.7,2629.5,4.58391]
[1727253665973,0.7876,2629.8,2629.5,4.58391]
[1727253666289,0.11232824,2629.7,2629.5,4.58391]
[1727253666463,0.7876,2629.8,2629.5,0.781]
[1727253666669,0.8353,2630.0,2629.6,3.80285]
[1727253666981,0.11232824,2629.7,2629.6,3.80285]
[1727253667145,0.8353,2630.0,2629.6,3.80285]
[1727253667487,0.11250496,2629.9,2629.6,3.80285]
[1727253668652,0.11250496,2629.9,2629.4,3.80307]
[1727253668878,0.11250496,2629.9,2629.3,3.80328]
[1727253668879,3.8026,2629.8,2629.3,3.80328]
[1727253669046,3.8026,2629.8,2629.2,4.59273]
[1727253669047,5.3830915,2629.7,2629.2,4.59273]
[1727253669244,3.80286,2629.6,2629.1,3.8035]
[1727253669446,0.788,2629.4,2629.0,4.48761386]
[1727253669680,0.788,2629.4,2629.0,3.84161]
[1727253669846,0.11244528,2629.3,2629.0,3.84161]
[1727253671283,0.11244528,2629.3,2629.0,7.64525]
[1727253671579,0.11244528,2629.3,2629.0,3.84161]
[1727253671783,0.11244528,2629.3,2629.0,7.64526]
[1727253671971,0.11244528,2629.3,2629.0,3.84161]
[1727253672288,0.11244528,2629.3,2629.0,7.64525]
[1727253672448,0.11244528,2629.3,2629.1,3.80357]
[1727253672850,0.11244528,2629.3,2629.1,3.80349]
[1727253673070,0.11244528,2629.3,2629.0,3.84161]
[1727253673071,0.11244528,2629.3,2629.2,3.80343]
[1727253673277,0.8177,2629.6,2629.3,3.80322]
[1727253676551,0.11235241,2629.5,2629.3,3.80322]
[1727253681169,0.11235241,2629.5,2629.2,0.75]
[1727253681506,0.8177,2629.6,2629.2,4.55341]
[1727253681798,0.11226404,2629.4,2629.2,4.55341]
[1727253682005,0.8177,2629.6,2629.2,4.55341]
[1727253682165,0.11217566,2629.3,2629.2,4.55341]
[1727253682361,0.8177,2629.6,2629.2,4.55341]
[1727253682601,0.11217566,2629.3,2629.2,4.55341]
[1727253682805,0.8177,2629.6,2629.2,4.55341]
[1727253683412,0.11235241,2629.5,2629.2,4.55341]
[1727253685070,0.11235241,2629.5,2629.1,7.60704]
[1727253685265,0.11235241,2629.5,2629.0,7.61772]
[1727253685816,0.11235241,2629.5,2629.0,8.94926955]
[1727253688825,3.91538241,2629.5,2629.0,8.94926955]
[1727253689025,0.11235241,2629.5,2629.1,3.80357]
[1727253689324,0.11235241,2629.5,2629.1,3.8035]
[1727253691040,0.11235241,2629.5,2629.2,3.80342]
[1727253691820,0.11235241,2629.5,2629.1,3.8035]
[1727253692023,0.11235241,2629.5,2629.1,7.607]
[1727253693225,0.11235241,2629.5,2629.1,3.8035]
[1727253693730,4.38873265,2629.5,2629.0,3.84172]
[1727253694507,0.58565265,2629.5,2629.0,3.84172]
[1727253695295,4.61321,2629.4,2629.0,0.038]
[1727253695500,5.37634749,2629.4,2629.0,0.038]
[1727253696336,9.17958749,2629.4,2629.0,0.038]
[1727253697305,10.48164737,2629.4,2629.0,0.038]
[1727253698036,3.8033,2629.3,2629.0,0.038]
[1727253698235,4.85147074,2629.3,2629.0,0.038]
[1727253698391,0.11207491,2629.2,2629.0,0.038]
[1727253698835,4.85147074,2629.3,2629.0,0.038]
[1727253699315,0.11207491,2629.2,2629.0,0.038]
[1727253699519,3.8033,2629.3,2629.0,0.038]
[1727253699708,0.11198652,2629.1,2629.0,0.038]
[1727253699891,3.8033,2629.3,2629.0,0.038]
[1727253700091,0.11198652,2629.1,2629.0,0.038]
[1727253700292,2.76289613,2629.4,2629.0,0.038]
[1727253700636,0.11198652,2629.1,2629.0,3.84169]
[1727253700794,5.26399625,2629.4,2629.0,3.84169]
[1727253700991,0.11198652,2629.1,2629.0,3.84169]
[1727253701191,4.61316,2629.4,2629.0,3.84169]
[1727253701394,0.11198652,2629.1,2629.0,0.038]
[1727253701594,0.90670063,2629.3,2629.0,0.038]
[1727253702121,0.11207491,2629.2,2629.0,0.038]
[1727253702318,0.90670063,2629.3,2629.0,0.038]
[1727253702525,0.11198652,2629.1,2629.0,0.038]
[1727253702702,4.61316,2629.4,2629.0,0.038]
[1727253702901,0.11198652,2629.1,2629.0,0.038]
[1727253703110,4.61316,2629.4,2629.0,0.038]
[1727253703302,0.11198652,2629.1,2629.0,0.038]
[1727253703501,4.61316,2629.4,2629.0,0.038]
[1727253703710,0.11195014,2629.1,2629.0,3.84172]
[1727253704044,0.7748,2629.6,2629.2,4.63632]
[1727253704997,4.65725,2630.0,2629.5,3.80293]
[1727253705233,0.038,2630.0,2629.7,3.80271]
[1727253705434,0.038,2630.0,2629.9,3.80242]